fUST/lending_fUST_20250809
["ID","MTS","AMOUNT","RATE_DAILY","PERIOD"]
[378083856,1754718660835,-833.04,0.00024383,2]
[378083857,1754718660844,-551.78,0.00024383,2]
[378083858,1754718660860,-460.0,0.00024383,2]
[378083859,1754718660881,-460.0,0.00024383,2]
[378083860,1754718660901,-648.22,0.00024383,2]
[378083861,1754718660918,-2838.36,0.00024383,2]
[378083862,1754718660927,-532.22,0.00024383,2]
[378083863,1754718660937,-460.0,0.00024383,2]
[378083864,1754718660946,-460.0,0.00024383,2]
[378083865,1754718660955,-1444.76,0.0002443,2]
[378083866,1754718660965,-230.82,0.00024431,2]
[378083867,1754718660974,-360.0,0.00024444,2]
[378083868,1754718660986,-2044.22035058,0.00024512,2]
[378083869,1754718660995,-2510.91483232,0.00024512,2]
[378083870,1754718661005,-500.0,0.00024565,2]
[378083871,1754718661014,-151.0,0.000246,8]
[378083872,1754718661024,-460.0,0.00024657,2]
[378083873,1754718661033,-592.60485104,0.00024657,2]
[378083874,1754718661042,-460.0,0.00024657,2]
[378083875,1754718661051,-320.24194173,0.00024657,2]
[378083876,1754718661061,-610.73,0.00024657,2]
[378083877,1754718661070,-460.0,0.00024657,2]
[378083878,1754718661079,-460.0,0.00024657,2]
[378083879,1754718661089,-259.0262404,0.00024657,2]
[378083880,1754718661099,-460.0,0.00024657,2]
[378083881,1754718661109,-460.0,0.00024657,2]
[378083882,1754718661119,-460.0,0.00024657,2]
[378083883,1754718661128,-460.0,0.00024657,2]
[378083884,1754718661137,-460.0,0.00024657,2]
[378083885,1754718661146,-667.01,0.00024657,2]
[378083886,1754718661156,-460.0,0.00024657,2]
[378083887,1754718661165,-460.0,0.00024657,2]
[378083888,1754718661175,-460.0,0.00024657,2]
[378083889,1754718661184,-460.0,0.00024657,2]
[378083890,1754718661194,-460.0,0.00024657,2]
[378083891,1754718661203,-460.0,0.00024657,2]
[378083892,1754718661213,-460.0,0.00024657,2]
[378083893,1754718661223,-460.0,0.00024657,2]
[378083894,1754718661232,-200.03954777,0.00024657,2]
[378083895,1754718661241,-460.0,0.00024657,2]
[378083896,1754718661251,-460.0,0.00024657,2]
[378083897,1754718661261,-460.0,0.00024657,2]
[378083898,1754718661270,-460.0,0.00024657,2]
[378083899,1754718661280,-2883.43,0.00024657,4]
[378083900,1754718661290,-460.0,0.00024657,2]
[378083901,1754718661300,-940.82,0.00024657,2]
[378083902,1754718661309,-861.6,0.00024657,2]
[378083903,1754718661318,-837.05,0.00024657,2]
[378083904,1754718661328,-460.0,0.00024657,2]
[378083905,1754718661340,-1005.24,0.00024657,2]
[378083906,1754718661350,-460.0,0.00024657,2]
[378083907,1754718661361,-575.98,0.00024657,2]
[378083908,1754718661371,-1889.53,0.00024657,2]
[378083909,1754718661380,-460.0,0.00024657,2]
[378083910,1754718661389,-545.75,0.00024657,2]
[378083911,1754718661399,-460.0,0.00024657,2]
[378083912,1754718661408,-465.5,0.00024657,2]
[378083913,1754718661418,-560.62,0.00024657,2]
[378083914,1754718661428,-460.0,0.00024657,2]
[378083915,1754718661437,-170.81714969,0.00024657,2]
[378083916,1754718661446,-460.0,0.00024657,2]
[378083917,1754718661456,-985.45,0.00024657,2]
[378083918,1754718661465,-478.96,0.00024657,2]
[378083919,1754718661475,-460.0,0.00024657,2]
[378083920,1754718661485,-460.0,0.00024657,2]
[378083921,1754718661496,-1794.59,0.00024657,2]
[378083922,1754718661506,-532.69,0.00024657,2]
[378083923,1754718661515,-1214.97,0.00024657,2]
[378083924,1754718661525,-4089.86,0.00024657,2]
[378083925,1754718661535,-460.0,0.00024657,2]
[378083926,1754718661544,-460.0,0.00024657,2]
[378083927,1754718661554,-460.0,0.00024657,2]
[378083928,1754718661564,-645.49,0.00024657,2]
[378083929,1754718661586,-1659.93,0.00024657,2]
[378083930,1754718661599,-1498.54,0.00024657,2]
[378083931,1754718661608,-460.0,0.00024657,2]
[378083932,1754718661619,-460.0,0.00024657,2]
[378083933,1754718661628,-460.0,0.00024657,2]
[378083934,1754718661637,-460.0,0.00024657,2]
[378083935,1754718661647,-460.0,0.00024657,2]
[378083936,1754718661656,-460.0,0.00024657,2]
[378083937,1754718661666,-460.0,0.00024657,2]
[378083938,1754718661675,-460.0,0.00024657,2]
[378083939,1754718661684,-460.0,0.00024657,2]
[378083940,1754718661694,-460.0,0.00024657,2]
[378083941,1754718661703,-460.0,0.00024657,2]
[378083942,1754718661712,-460.0,0.00024657,2]
[378083943,1754718661721,-1028.81,0.00024657,2]
[378083944,1754718661731,-460.0,0.00024657,2]
[378083945,1754718661740,-1385.66,0.00024657,2]
[378083946,1754718661750,-769.47,0.00024657,2]
[378083947,1754718661759,-1085.83,0.00024657,2]
[378083948,1754718661769,-485.50622539,0.00024657,2]
[378083949,1754718661779,-1404.07,0.00024657,2]
[378083950,1754718661789,-460.0,0.00024657,2]
[378083951,1754718661799,-575.27,0.00024657,2]
[378083952,1754718661807,-460.0,0.00024657,2]
[378083953,1754718661817,-460.0,0.00024657,2]
[378083954,1754718661825,-480.89,0.00024657,2]
[378083955,1754718661835,-460.0,0.00024657,2]
[378083956,1754718661844,-724.97,0.00024657,2]
[378083957,1754718661854,-833.04,0.00024657,2]
[378083958,1754718661863,-551.78,0.00024657,2]
[378083959,1754718661873,-213.16873762,0.00024657,2]
[378083960,1754718661883,-648.22,0.00024657,2]
[378083961,1754718661892,-2838.36,0.00024657,2]
[378083962,1754718661901,-532.22,0.00024657,2]
[378083963,1754718661911,-259.21,0.00024657,2]
[378083964,1754718661922,-460.0,0.00024657,2]
[378083965,1754718661931,-150.0,0.00024658,2]
[378083966,1754718661940,-380.0,0.00024658,2]
[378083967,1754718661950,-303.34601672,0.00024658,2]
[378083968,1754718661960,-500.0,0.00024658,2]
[378083969,1754718661970,-457.10273539,0.00024658,2]
[378083970,1754718661981,-500.0,0.00024658,2]
[378083971,1754718661993,-500.0,0.00024658,2]
[378083972,1754718662003,-500.0,0.00024658,2]
[378083973,1754718662012,-500.0,0.0002468,2]
[378083974,1754718662023,-450.0,0.00024712,2]
[378083975,1754718662033,-86015.7673784,0.000248,2]
[378083976,1754718662042,-17961.2500883,0.000248,2]
[378083977,1754718662051,-300.0,0.00024873,2]
[378083978,1754718662063,-151.0,0.000249,7]
[378083979,1754718662072,-151.0,0.000249,7]
[378083980,1754718662082,-151.0,0.000249,7]
[378083981,1754718662097,-151.0,0.000249,7]
[378083982,1754718662108,-151.0,0.000249,7]
[378083983,1754718662119,-151.0,0.000249,7]
[378083984,1754718662128,-151.0,0.000249,7]
[378083985,1754718662138,-151.0,0.000249,7]
[378083986,1754718662147,-151.0,0.000249,7]
[378083987,1754718662161,-633613.470053,0.000249,2]
[378083988,1754718662175,-151.0,0.000249,7]
[378083989,1754718662184,-195.032777,0.000249,7]
[378083990,1754718662194,-3000.0,0.00024912,2]
[378083991,1754718662204,-3000.0,0.00024912,2]
[378083992,1754718662213,-460.0,0.00024931,2]
[378083993,1754718662223,-460.0,0.00024931,2]
[378083994,1754718662233,-610.73,0.00024931,2]
[378083995,1754718662242,-460.0,0.00024931,2]
[378083996,1754718662252,-460.0,0.00024931,2]
[378083997,1754718662262,-460.0,0.00024931,2]
[378083998,1754718662271,-460.0,0.00024931,2]
[378083999,1754718662280,-195.45813194,0.00024931,2]
[378084000,1754718662290,-486.51456895,0.00024931,2]
[378084001,1754718662299,-460.0,0.00024931,2]
[378084002,1754718662309,-667.01,0.00024931,2]
[378084003,1754718662318,-460.0,0.00024931,2]
[378084004,1754718662328,-348.19280875,0.00024931,2]
[378084005,1754718662337,-460.0,0.00024931,2]
[378084006,1754718662346,-460.0,0.00024931,2]
[378084007,1754718662356,-460.0,0.00024931,2]
[378084008,1754718662365,-460.0,0.00024931,2]
[378084009,1754718662376,-460.0,0.00024931,2]
[378084010,1754718662387,-460.0,0.00024931,2]
[378084011,1754718662398,-460.0,0.00024931,2]
[378084012,1754718662407,-473.56707233,0.00024931,2]
[378084013,1754718662417,-460.0,0.00024931,2]
[378084014,1754718662426,-460.0,0.00024931,2]
[378084015,1754718662436,-460.0,0.00024931,2]
[378084016,1754718662446,-940.82,0.00024931,2]
[378084017,1754718662456,-861.6,0.00024931,2]
[378084018,1754718662466,-837.05,0.00024931,2]
[378084019,1754718662475,-460.0,0.00024931,2]
[378084020,1754718662485,-1005.24,0.00024931,2]
[378084021,1754718662495,-460.0,0.00024931,2]
[378084022,1754718662504,-575.98,0.00024931,2]
[378084023,1754718662514,-1889.53,0.00024931,2]
[378084024,1754718662523,-460.0,0.00024931,2]
[378084025,1754718662532,-545.75,0.00024931,2]
[378084026,1754718662542,-460.0,0.00024931,2]
[378084027,1754718662552,-465.5,0.00024931,2]
[378084028,1754718662562,-560.62,0.00024931,2]
[378084029,1754718662572,-460.0,0.00024931,2]
[378084030,1754718662581,-460.0,0.00024931,2]
[378084031,1754718662591,-985.45,0.00024931,2]
[378084032,1754718662601,-478.96,0.00024931,2]
[378084033,1754718662610,-460.0,0.00024931,2]
[378084034,1754718662621,-460.0,0.00024931,2]
[378084035,1754718662631,-1794.59,0.00024931,2]
[378084036,1754718662640,-532.69,0.00024931,2]
[378084037,1754718662650,-1214.97,0.00024931,2]
[378084038,1754718662659,-4089.86,0.00024931,2]
[378084039,1754718662668,-460.0,0.00024931,2]
[378084040,1754718662677,-460.0,0.00024931,2]
[378084041,1754718662687,-645.49,0.00024931,2]
[378084042,1754718662697,-1659.93,0.00024931,2]
[378084043,1754718662706,-1498.54,0.00024931,2]
[378084044,1754718662716,-460.0,0.00024931,2]
[378084045,1754718662726,-460.0,0.00024931,2]
[378084046,1754718662736,-460.0,0.00024931,2]
[378084047,1754718662746,-460.0,0.00024931,2]
[378084048,1754718662755,-460.0,0.00024931,2]
[378084049,1754718662765,-460.0,0.00024931,2]
[378084050,1754718662775,-460.0,0.00024931,2]
[378084051,1754718662785,-460.0,0.00024931,2]
[378084052,1754718662794,-460.0,0.00024931,2]
[378084053,1754718662804,-460.0,0.00024931,2]
[378084054,1754718662813,-460.0,0.00024931,2]
[378084055,1754718662823,-1028.81,0.00024931,2]
[378084056,1754718662833,-460.0,0.00024931,2]
[378084057,1754718662843,-1385.66,0.00024931,2]
[378084058,1754718662853,-769.47,0.00024931,2]
[378084059,1754718662862,-1085.83,0.00024931,2]
[378084060,1754718662873,-1404.07,0.00024931,2]
[378084061,1754718662883,-460.0,0.00024931,2]
[378084062,1754718662892,-575.27,0.00024931,2]
[378084063,1754718662902,-460.0,0.00024931,2]
[378084064,1754718662912,-379.83441443,0.00024931,2]
[378084065,1754718662922,-480.89,0.00024931,2]
[378084066,1754718662932,-460.0,0.00024931,2]
[378084067,1754718662942,-724.97,0.00024931,2]
[378084068,1754718662952,-833.04,0.00024931,2]
[378084069,1754718662963,-551.78,0.00024931,2]
[378084070,1754718662973,-648.22,0.00024931,2]
[378084071,1754718662984,-2838.36,0.00024931,2]
[378084072,1754718662994,-532.22,0.00024931,2]
[378084073,1754718663003,-504.26879671,0.00024964,2]
[378084074,1754718663013,-813.971,0.00024977,2]
[378084075,1754718663023,-2200.0,0.00024977,2]
[378084076,1754718663033,-460.0,0.00024992,2]
[378084077,1754718663042,-151.0,0.00025,7]
[378084078,1754718663052,-161.12247853,0.00025096,15]
[378084079,1754718663062,-7638.35700112,0.00025164,2]
[378084080,1754718663071,-150.0,0.00025188,2]
[378084081,1754718663081,-460.0,0.00025205,2]
[378084082,1754718663091,-460.0,0.00025205,2]
[378084083,1754718663101,-610.73,0.00025205,2]
[378084084,1754718663110,-460.0,0.00025205,2]
[378084085,1754718663123,-460.0,0.00025205,2]
[378084086,1754718663133,-460.0,0.00025205,2]
[378084087,1754718663143,-460.0,0.00025205,2]
[378084088,1754718663152,-460.0,0.00025205,2]
[378084089,1754718663162,-667.01,0.00025205,2]
[378084090,1754718663171,-460.0,0.00025205,2]
[378084091,1754718663181,-151.0,0.00025205,7]
[378084092,1754718663191,-460.0,0.00025205,2]
[378084093,1754718663201,-460.0,0.00025205,2]
[378084094,1754718663211,-460.0,0.00025205,2]
[378084095,1754718663220,-460.0,0.00025205,2]
[378084096,1754718663230,-151.0,0.00025205,7]
[378084097,1754718663240,-183.020464,0.00025205,7]
[378084098,1754718663250,-460.0,0.00025205,2]
[378084099,1754718663260,-460.0,0.00025205,2]
[378084100,1754718663270,-460.0,0.00025205,2]
[378084101,1754718663280,-460.0,0.00025205,2]
[378084102,1754718663290,-460.0,0.00025205,2]
[378084103,1754718663300,-940.82,0.00025205,2]
[378084104,1754718663309,-861.6,0.00025205,2]
[378084105,1754718663319,-837.05,0.00025205,2]
[378084106,1754718663330,-158.93522068,0.00025205,2]
[378084107,1754718663340,-1005.24,0.00025205,2]
[378084108,1754718663350,-460.0,0.00025205,2]
[378084109,1754718663359,-575.98,0.00025205,2]
[378084110,1754718663370,-1889.53,0.00025205,2]
[378084111,1754718663379,-460.0,0.00025205,2]
[378084112,1754718663389,-545.75,0.00025205,2]
[378084113,1754718663399,-460.0,0.00025205,2]
[378084114,1754718663410,-465.5,0.00025205,2]
[378084115,1754718663420,-560.62,0.00025205,2]
[378084116,1754718663431,-460.0,0.00025205,2]
[378084117,1754718663441,-460.0,0.00025205,2]
[378084118,1754718663450,-985.45,0.00025205,2]
[378084119,1754718663576,-478.96,0.00025205,2]
[378084120,1754718663587,-179.26,0.00025205,2]
[378084121,1754718663597,-529.6885551,0.00025205,2]
[378084122,1754718663607,-1794.59,0.00025205,2]
[378084123,1754718663617,-532.69,0.00025205,2]
[378084124,1754718663627,-1214.97,0.00025205,2]
[378084125,1754718663637,-4089.86,0.00025205,2]
[378084126,1754718663648,-460.0,0.00025205,2]
[378084127,1754718663658,-645.49,0.00025205,2]
[378084128,1754718663667,-460.0,0.00025205,2]
[378084129,1754718663677,-1659.93,0.00025205,2]
[378084130,1754718663686,-1498.54,0.00025205,2]
[378084131,1754718663696,-460.0,0.00025205,2]
[378084132,1754718663705,-460.0,0.00025205,2]
[378084133,1754718663715,-460.0,0.00025205,2]
[378084134,1754718663724,-460.0,0.00025205,2]
[378084135,1754718663734,-460.0,0.00025205,2]
[378084136,1754718663743,-460.0,0.00025205,2]
[378084137,1754718663753,-460.0,0.00025205,2]
[378084138,1754718663763,-460.0,0.00025205,2]
[378084139,1754718663773,-460.0,0.00025205,2]
[378084140,1754718663783,-460.0,0.00025205,2]
[378084141,1754718663792,-1028.81,0.00025205,2]
[378084142,1754718663802,-460.0,0.00025205,2]
[378084143,1754718663812,-1385.66,0.00025205,2]
[378084144,1754718663822,-769.47,0.00025205,2]
[378084145,1754718663832,-1085.83,0.00025205,2]
[378084146,1754718663842,-1404.07,0.00025205,2]
[378084147,1754718663852,-460.0,0.00025205,2]
[378084148,1754718663862,-575.27,0.00025205,2]
[378084149,1754718663873,-480.89,0.00025205,2]
[378084150,1754718663883,-460.0,0.00025205,2]
[378084151,1754718663893,-724.97,0.00025205,2]
[378084152,1754718663904,-833.04,0.00025205,2]
[378084153,1754718663915,-551.78,0.00025205,2]
[378084154,1754718663924,-648.22,0.00025205,2]
[378084155,1754718663935,-258.797194,0.00025205,7]
[378084156,1754718663945,-2838.36,0.00025205,2]
[378084157,1754718663956,-532.22,0.00025205,2]
[378084158,1754718663966,-180.29597835,0.00025357,2]
[378084159,1754718663980,-600.0,0.00025421,2]
[378084160,1754718663989,-671.66143507,0.0002543,2]
[378084161,1754718663999,-3500.0,0.0002546,2]
[378084162,1754718664009,-2736.27025814,0.0002546,2]
[378084163,1754718664020,-460.0,0.00025479,2]
[378084164,1754718664030,-275.21,0.00025479,10]
[378084165,1754718664039,-460.0,0.00025479,2]
[378084166,1754718664050,-610.73,0.00025479,2]
[378084167,1754718664060,-460.0,0.00025479,2]
[378084168,1754718664070,-460.0,0.00025479,2]
[378084169,1754718664081,-460.0,0.00025479,2]
[378084170,1754718664090,-215.92355815,0.00025479,2]
[378084171,1754718664100,-460.0,0.00025479,2]
[378084172,1754718664109,-667.01,0.00025479,2]
[378084173,1754718664120,-263.23497626,0.00025479,2]
[378084174,1754718664130,-350.09618825,0.00025479,2]
[378084175,1754718664140,-460.0,0.00025479,2]
[378084176,1754718664150,-460.0,0.00025479,2]
[378084177,1754718664159,-460.0,0.00025479,2]
[378084178,1754718664169,-460.0,0.00025479,2]
[378084179,1754718664178,-460.0,0.00025479,2]
[378084180,1754718664188,-460.0,0.00025479,2]
[378084181,1754718664198,-524.71158442,0.00025479,2]
[378084182,1754718664207,-940.82,0.00025479,2]
[378084183,1754718664217,-861.6,0.00025479,2]
[378084184,1754718664227,-837.05,0.00025479,2]
[378084185,1754718664238,-1005.24,0.00025479,2]
[378084186,1754718664247,-460.0,0.00025479,2]
[378084187,1754718664257,-575.98,0.00025479,2]
[378084188,1754718664267,-1889.53,0.00025479,2]
[378084189,1754718664277,-460.0,0.00025479,2]
[378084190,1754718664287,-545.75,0.00025479,2]
[378084191,1754718664299,-484.05237576,0.00025479,2]
[378084192,1754718664310,-465.5,0.00025479,2]
[378084193,1754718664320,-560.62,0.00025479,2]
[378084194,1754718664331,-460.0,0.00025479,2]
[378084195,1754718664342,-460.0,0.00025479,2]
[378084196,1754718664352,-985.45,0.00025479,2]
[378084197,1754718664363,-478.96,0.00025479,2]
[378084198,1754718664377,-1794.59,0.00025479,2]
[378084199,1754718664387,-532.69,0.00025479,2]
[378084200,1754718664397,-1214.97,0.00025479,2]
[378084201,1754718664408,-4089.86,0.00025479,2]
[378084202,1754718664418,-460.0,0.00025479,2]
[378084203,1754718664428,-645.49,0.00025479,2]
[378084204,1754718664438,-460.0,0.00025479,2]
[378084205,1754718664449,-1659.93,0.00025479,2]
[378084206,1754718664459,-1498.54,0.00025479,2]
[378084207,1754718664469,-460.0,0.00025479,2]
[378084208,1754718664480,-460.0,0.00025479,2]
[378084209,1754718664489,-460.0,0.00025479,2]
[378084210,1754718664500,-460.0,0.00025479,2]
[378084211,1754718664511,-460.0,0.00025479,2]
[378084212,1754718664520,-390.07884141,0.00025479,2]
[378084213,1754718664530,-460.0,0.00025479,2]
[378084214,1754718664540,-460.0,0.00025479,2]
[378084215,1754718664550,-460.0,0.00025479,2]
[378084216,1754718664560,-460.0,0.00025479,2]
[378084217,1754718664569,-1028.81,0.00025479,2]
[378084218,1754718664579,-594.6725337,0.00025479,2]
[378084219,1754718664589,-1385.66,0.00025479,2]
[378084220,1754718664598,-769.47,0.00025479,2]
[378084221,1754718664608,-1085.83,0.00025479,2]
[378084222,1754718664617,-1404.07,0.00025479,2]
[378084223,1754718664629,-460.0,0.00025479,2]
[378084224,1754718664638,-575.27,0.00025479,2]
[378084225,1754718664647,-480.89,0.00025479,2]
[378084226,1754718664655,-460.0,0.00025479,2]
[378084227,1754718664664,-724.97,0.00025479,2]
[378084228,1754718664674,-833.04,0.00025479,2]
[378084229,1754718664683,-551.78,0.00025479,2]
[378084230,1754718664692,-648.22,0.00025479,2]
[378084231,1754718664701,-2838.36,0.00025479,2]
[378084232,1754718664711,-532.22,0.00025479,2]
[378084233,1754718664720,-560.0,0.0002554,2]
[378084234,1754718664730,-587.0,0.00025608,2]
[378084235,1754718664739,-1444.76,0.00025645,7]
[378084236,1754718664749,-230.82,0.00025646,7]
[378084237,1754718664758,-151.0,0.00025753,7]
[378084238,1754718664767,-151.0,0.00025753,7]
[378084239,1754718664777,-460.0,0.00025753,2]
[378084240,1754718664786,-460.0,0.00025753,2]
[378084241,1754718664795,-610.73,0.00025753,2]
[378084242,1754718664804,-460.0,0.00025753,2]
[378084243,1754718664814,-460.0,0.00025753,2]
[378084244,1754718664823,-460.0,0.00025753,2]
[378084245,1754718664833,-460.0,0.00025753,2]
[378084246,1754718664843,-667.01,0.00025753,2]
[378084247,1754718664853,-460.0,0.00025753,2]
[378084248,1754718664863,-460.0,0.00025753,2]
[378084249,1754718664875,-460.0,0.00025753,2]
[378084250,1754718664885,-460.0,0.00025753,2]
[378084251,1754718664895,-460.0,0.00025753,2]
[378084252,1754718664905,-460.0,0.00025753,2]
[378084253,1754718664914,-940.82,0.00025753,2]
[378084254,1754718664924,-861.6,0.00025753,2]
[378084255,1754718664935,-837.05,0.00025753,2]
[378084256,1754718664945,-1005.24,0.00025753,2]
[378084257,1754718664955,-460.0,0.00025753,2]
[378084258,1754718664964,-575.98,0.00025753,2]
[378084259,1754718664974,-1889.53,0.00025753,2]
[378084260,1754718664987,-460.0,0.00025753,2]
[378084261,1754718664997,-545.75,0.00025753,2]
[378084262,1754718665006,-465.5,0.00025753,2]
[378084263,1754718665016,-560.62,0.00025753,2]
[378084264,1754718665025,-460.0,0.00025753,2]
[378084265,1754718665035,-460.0,0.00025753,2]
[378084266,1754718665044,-985.45,0.00025753,2]
[378084267,1754718665054,-478.96,0.00025753,2]
[378084268,1754718665063,-1794.59,0.00025753,2]
[378084269,1754718665073,-532.69,0.00025753,2]
[378084270,1754718665083,-1214.97,0.00025753,2]
[378084271,1754718665092,-4089.86,0.00025753,2]
[378084272,1754718665102,-460.0,0.00025753,2]
[378084273,1754718665111,-645.49,0.00025753,2]
[378084274,1754718665123,-460.0,0.00025753,2]
[378084275,1754718665132,-1659.93,0.00025753,2]
[378084276,1754718665142,-1498.54,0.00025753,2]
[378084277,1754718665151,-460.0,0.00025753,2]
[378084278,1754718665161,-460.0,0.00025753,2]
[378084279,1754718665170,-460.0,0.00025753,2]
[378084280,1754718665179,-460.0,0.00025753,2]
[378084281,1754718665189,-460.0,0.00025753,2]
[378084282,1754718665199,-460.0,0.00025753,2]
[378084283,1754718665208,-460.0,0.00025753,2]
[378084284,1754718665218,-460.0,0.00025753,2]
[378084285,1754718665227,-460.0,0.00025753,2]
[378084286,1754718665237,-1028.81,0.00025753,2]
[378084287,1754718665247,-1385.66,0.00025753,2]
[378084288,1754718665256,-769.47,0.00025753,2]
[378084289,1754718665265,-1085.83,0.00025753,2]
[378084290,1754718665275,-1404.07,0.00025753,2]
[378084291,1754718665284,-153.41258083,0.00025753,2]
[378084292,1754718665293,-575.27,0.00025753,2]
[378084293,1754718665303,-480.89,0.00025753,2]
[378084294,1754718665312,-460.0,0.00025753,2]
[378084295,1754718665321,-724.97,0.00025753,2]
[378084296,1754718665331,-833.04,0.00025753,2]
[378084297,1754718665340,-551.78,0.00025753,2]
[378084298,1754718665349,-648.22,0.00025753,2]
[378084299,1754718665359,-2838.36,0.00025753,2]
[378084300,1754718665368,-532.22,0.00025753,2]
[378084301,1754718665378,-500.0,0.00025793,2]
[378084302,1754718665388,-168.0,0.00025873,2]
[378084303,1754718665397,-151.0,0.0002589,7]
[378084304,1754718665407,-168.0,0.00025907,2]
[378084305,1754718665416,-900.0,0.00025968,2]
[378084306,1754718665426,-160.0,0.00026,10]
[378084307,1754718665436,-1252.01158172,0.00026008,2]
[378084308,1754718665445,-460.0,0.00026027,2]
[378084309,1754718665455,-460.0,0.00026027,2]
[378084310,1754718665464,-610.73,0.00026027,2]
[378084311,1754718665473,-460.0,0.00026027,2]
[378084312,1754718665482,-460.0,0.00026027,2]
[378084313,1754718665491,-460.0,0.00026027,2]
[378084314,1754718665501,-667.01,0.00026027,2]
[378084315,1754718665510,-460.0,0.00026027,2]
[378084316,1754718665520,-460.0,0.00026027,2]
[378084317,1754718665530,-460.0,0.00026027,2]
[378084318,1754718665539,-940.82,0.00026027,2]
[378084319,1754718665550,-861.6,0.00026027,2]
[378084320,1754718665559,-837.05,0.00026027,2]
[378084321,1754718665568,-460.0,0.00026027,2]
[378084322,1754718665578,-1005.24,0.00026027,2]
[378084323,1754718665587,-575.98,0.00026027,2]
[378084324,1754718665597,-1889.53,0.00026027,2]
[378084325,1754718665607,-460.0,0.00026027,2]
[378084326,1754718665616,-545.75,0.00026027,2]
[378084327,1754718665627,-465.5,0.00026027,2]
[378084328,1754718665637,-560.62,0.00026027,2]
[378084329,1754718665646,-460.0,0.00026027,2]
[378084330,1754718665656,-985.45,0.00026027,2]
[378084331,1754718665666,-478.96,0.00026027,2]
[378084332,1754718665675,-1794.59,0.00026027,2]
[378084333,1754718665685,-532.69,0.00026027,2]
[378084334,1754718665694,-1214.97,0.00026027,2]
[378084335,1754718665704,-4089.86,0.00026027,2]
[378084336,1754718665713,-460.0,0.00026027,2]
[378084337,1754718665722,-460.0,0.00026027,2]
[378084338,1754718665732,-645.49,0.00026027,2]
[378084339,1754718665742,-1659.93,0.00026027,2]
[378084340,1754718665751,-1498.54,0.00026027,2]
[378084341,1754718665760,-460.0,0.00026027,2]
[378084342,1754718665770,-532.07921807,0.00026027,2]
[378084343,1754718665780,-460.0,0.00026027,2]
[378084344,1754718665789,-460.0,0.00026027,2]
[378084345,1754718665799,-460.0,0.00026027,2]
[378084346,1754718665809,-460.0,0.00026027,2]
[378084347,1754718665819,-460.0,0.00026027,2]
[378084348,1754718665828,-1028.81,0.00026027,2]
[378084349,1754718665838,-1385.66,0.00026027,2]
[378084350,1754718665848,-769.47,0.00026027,2]
[378084351,1754718665858,-1085.83,0.00026027,2]
[378084352,1754718665868,-1404.07,0.00026027,2]
[378084353,1754718665880,-575.27,0.00026027,2]
[378084354,1754718665890,-480.89,0.00026027,2]
[378084355,1754718665900,-460.0,0.00026027,2]